[Event "*** Titled Tuesday Blitz"]
[Site "Chess.com"]
[Date "2021.03.30"]
[Round "8"]
[White "utsavp"]
[Black "xberli"]
[Result "1-0"]
[WhiteElo "2318"]
[BlackElo "2482"]
[TimeControl "180+1"]
[EndTime "11:30:12 PDT"]
[Termination "utsavp won by checkmate"]

1. e4 {[%clk 0:03:00.9]} 1... e5 {[%clk 0:02:58.7]} 2. Nf3 {[%clk 0:03:00.7]}
2... Nc6 {[%clk 0:02:59.2]} 3. Bb5 {[%clk 0:03:01]} 3... Nf6 {[%clk 0:02:58.4]}
4. Qe2 {[%clk 0:02:59.6]} 4... Bc5 {[%clk 0:02:54.5]} 5. c3 {[%clk 0:02:59.4]}
5... O-O {[%clk 0:02:54.2]} 6. O-O {[%clk 0:02:59.4]} 6... Re8 {[%clk
0:02:53.5]} 7. h3 {[%clk 0:02:57.6]} 7... a6 {[%clk 0:02:52.7]} 8. Ba4 {[%clk
0:02:57.1]} 8... Ba7 {[%clk 0:02:52.2]} 9. Rd1 {[%clk 0:02:56.5]} 9... d6 {[%clk
0:02:48.7]} 10. d3 {[%clk 0:02:56.4]} 10... h6 {[%clk 0:02:45.6]} 11. Nbd2
{[%clk 0:02:55.9]} 11... Bd7 {[%clk 0:02:37.9]} 12. Nf1 {[%clk 0:02:56]} 12...
Ne7 {[%clk 0:02:37.8]} 13. Bxd7 {[%clk 0:02:53.2]} 13... Qxd7 {[%clk 0:02:38.7]}
14. Ng3 {[%clk 0:02:51.5]} 14... Kh7 {[%clk 0:02:34.3]} 15. Nh4 {[%clk 0:02:49]}
15... Ng6 {[%clk 0:02:30.8]} 16. Nhf5 {[%clk 0:02:44.4]} 16... Nf4 {[%clk
0:02:08.1]} 17. Qf3 {[%clk 0:02:43.5]} 17... Ne6 {[%clk 0:01:55.2]} 18. Nxh6
{[%clk 0:02:37.1]} 18... Nf4 {[%clk 0:00:59.2]} 19. Bxf4 {[%clk 0:02:34.5]}
19... exf4 {[%clk 0:01:00.1]} 20. Qxf4 {[%clk 0:02:27.9]} 20... gxh6 {[%clk
0:00:51.9]} 21. Qxf6 {[%clk 0:02:27.2]} 21... Qe6 {[%clk 0:00:51.2]} 22. Qf4
{[%clk 0:02:26.3]} 22... Rg8 {[%clk 0:00:48.5]} 23. d4 {[%clk 0:02:18.9]} 23...
Rg5 {[%clk 0:00:46.7]} 24. Nf5 {[%clk 0:02:05.6]} 24... Rag8 {[%clk 0:00:42.3]}
25. g3 {[%clk 0:02:05.4]} 25... Bb8 {[%clk 0:00:39.1]} 26. d5 {[%clk 0:01:57.1]}
26... Qf6 {[%clk 0:00:34.6]} 27. Kg2 {[%clk 0:01:55.6]} 27... Ba7 {[%clk
0:00:34]} 28. Rd2 {[%clk 0:01:52]} 28... R5g6 {[%clk 0:00:31.4]} 29. Re1 {[%clk
0:01:49.6]} 29... Re8 {[%clk 0:00:30.2]} 30. Rde2 {[%clk 0:01:48.4]} 30... Re5
{[%clk 0:00:29.6]} 31. Kh2 {[%clk 0:01:41]} 31... Rg5 {[%clk 0:00:26.1]} 32. Ne3
{[%clk 0:01:35.2]} 32... Qg7 {[%clk 0:00:25.2]} 33. Ng4 {[%clk 0:01:32.7]} 33...
Re7 {[%clk 0:00:22.8]} 34. Nf6+ {[%clk 0:01:25.7]} 34... Kh8 {[%clk 0:00:22.1]}
35. h4 {[%clk 0:01:25]} 35... Rg6 {[%clk 0:00:21]} 36. Nh5 {[%clk 0:01:21.3]}
36... Qe5 {[%clk 0:00:19.8]} 37. Qxe5+ {[%clk 0:01:18.2]} 37... Rxe5 {[%clk
0:00:18.7]} 38. Nf4 {[%clk 0:01:18.2]} 38... Rg8 {[%clk 0:00:18.5]} 39. Nd3
{[%clk 0:01:17.9]} 39... Ree8 {[%clk 0:00:18.3]} 40. e5 {[%clk 0:01:15.4]} 40...
dxe5 {[%clk 0:00:19.2]} 41. Rxe5 {[%clk 0:01:15.6]} 41... Rd8 {[%clk 0:00:19]}
42. Kg2 {[%clk 0:01:14.9]} 42... Bb8 {[%clk 0:00:18.4]} 43. Rf5 {[%clk 0:01:12]}
43... Rg7 {[%clk 0:00:18]} 44. Re7 {[%clk 0:01:11.3]} 44... Kg8 {[%clk
0:00:17.5]} 45. c4 {[%clk 0:01:05.3]} 45... c6 {[%clk 0:00:17.4]} 46. Rxb7
{[%clk 0:01:03.9]} 46... cxd5 {[%clk 0:00:16.6]} 47. Rxd5 {[%clk 0:01:03.6]}
47... Re8 {[%clk 0:00:16.9]} 48. b3 {[%clk 0:01:01.5]} 48... h5 {[%clk
0:00:15.3]} 49. Rxh5 {[%clk 0:01:00.9]} 49... Bd6 {[%clk 0:00:15.4]} 50. Rd5
{[%clk 0:01:00.2]} 50... Bf8 {[%clk 0:00:15.3]} 51. Rg5 {[%clk 0:00:59.7]} 51...
Re2 {[%clk 0:00:14.8]} 52. a4 {[%clk 0:00:57.1]} 52... Rd2 {[%clk 0:00:13.9]}
53. Rxg7+ {[%clk 0:00:54.3]} 53... Bxg7 {[%clk 0:00:14.8]} 54. Nf4 {[%clk
0:00:54.1]} 54... Bd4 {[%clk 0:00:14.4]} 55. Nh3 {[%clk 0:00:55]} 55... a5
{[%clk 0:00:13.4]} 56. Rd7 {[%clk 0:00:53.8]} 56... Kf8 {[%clk 0:00:11.4]} 57.
h5 {[%clk 0:00:51.8]} 57... Ke8 {[%clk 0:00:11.3]} 58. Rd5 {[%clk 0:00:52.7]}
58... Ke7 {[%clk 0:00:11.4]} 59. h6 {[%clk 0:00:51.8]} 59... Bc3 {[%clk
0:00:10.1]} 60. Rxd2 {[%clk 0:00:51]} 60... Bxd2 {[%clk 0:00:11]} 61. f4 {[%clk
0:00:51.5]} 61... Bc3 {[%clk 0:00:11.5]} 62. Kf3 {[%clk 0:00:51.3]} 62... Kd6
{[%clk 0:00:11.4]} 63. Ke4 {[%clk 0:00:50.9]} 63... Kc5 {[%clk 0:00:11.6]} 64.
Kd3 {[%clk 0:00:50.9]} 64... Kb4 {[%clk 0:00:11.7]} 65. Kc2 {[%clk 0:00:50.5]}
65... Bd4 {[%clk 0:00:10.3]} 66. g4 {[%clk 0:00:50.4]} 66... Kc5 {[%clk
0:00:09.8]} 67. g5 {[%clk 0:00:48.6]} 67... Kd6 {[%clk 0:00:09.5]} 68. Kd3
{[%clk 0:00:48.4]} 68... Bb2 {[%clk 0:00:09.4]} 69. Ke4 {[%clk 0:00:47.9]} 69...
Kc5 {[%clk 0:00:09.2]} 70. f5 {[%clk 0:00:47.1]} 70... Bh8 {[%clk 0:00:08.6]}
71. g6 {[%clk 0:00:47.8]} 71... fxg6 {[%clk 0:00:09.5]} 72. fxg6 {[%clk
0:00:48.3]} 72... Bf6 {[%clk 0:00:09]} 73. g7 {[%clk 0:00:47.8]} 73... Kb4
{[%clk 0:00:09.9]} 74. g8=Q {[%clk 0:00:45.5]} 74... Kxb3 {[%clk 0:00:10.8]} 75.
c5+ {[%clk 0:00:44.8]} 75... Kxa4 {[%clk 0:00:11.7]} 76. Qc4+ {[%clk 0:00:44.7]}
76... Ka3 {[%clk 0:00:11.1]} 77. c6 {[%clk 0:00:45.6]} 77... a4 {[%clk
0:00:10.9]} 78. c7 {[%clk 0:00:45.3]} 78... Kb2 {[%clk 0:00:11.1]} 79. c8=Q
{[%clk 0:00:44.8]} 79... a3 {[%clk 0:00:12]} 80. Qb7+ {[%clk 0:00:44.4]} 80...
Ka1 {[%clk 0:00:11.4]} 81. Qc1+ {[%clk 0:00:43.4]} 81... Ka2 {[%clk 0:00:11.7]}
82. Qcb1# {[%clk 0:00:42.9]} 1-0

[Event "*** Titled Tuesday Blitz"]
[Site "Chess.com"]
[Date "2021.03.30"]
[Round "8"]
[White "StockholmMissile"]
[Black "Aslanov_Umid"]
[Result "1/2-1/2"]
[WhiteElo "2560"]
[BlackElo "2433"]
[TimeControl "180+1"]
[EndTime "11:30:16 PDT"]
[Termination "Game drawn by repetition"]

1. d4 {[%clk 0:03:00.9]} 1... d5 {[%clk 0:02:59.3]} 2. c4 {[%clk 0:03:00.9]}
2... e6 {[%clk 0:02:59.6]} 3. Nf3 {[%clk 0:03:01.3]} 3... c6 {[%clk 0:02:59.9]}
4. Nbd2 {[%clk 0:03:01]} 4... Nf6 {[%clk 0:02:59.6]} 5. g3 {[%clk 0:03:01]} 5...
Be7 {[%clk 0:03:00]} 6. Bg2 {[%clk 0:03:01.5]} 6... O-O {[%clk 0:03:00.4]} 7.
O-O {[%clk 0:03:02.1]} 7... Nbd7 {[%clk 0:02:59.9]} 8. Qc2 {[%clk 0:03:02.5]}
8... h6 {[%clk 0:02:59.9]} 9. e4 {[%clk 0:03:02.8]} 9... dxe4 {[%clk 0:02:59.8]}
10. Nxe4 {[%clk 0:03:03.7]} 10... Nxe4 {[%clk 0:03:00.7]} 11. Qxe4 {[%clk
0:03:04.5]} 11... Nf6 {[%clk 0:03:01.4]} 12. Qc2 {[%clk 0:03:04.3]} 12... Qc7
{[%clk 0:02:56.7]} 13. Rd1 {[%clk 0:02:59.5]} 13... c5 {[%clk 0:02:52.3]} 14.
Bf4 {[%clk 0:02:57.5]} 14... Qb6 {[%clk 0:02:51.4]} 15. dxc5 {[%clk 0:02:35.7]}
15... Bxc5 {[%clk 0:02:52.3]} 16. h3 {[%clk 0:02:35.4]} 16... Bd7 {[%clk
0:02:43.3]} 17. Ne5 {[%clk 0:02:35]} 17... Bc6 {[%clk 0:02:37]} 18. Nxc6 {[%clk
0:02:34.1]} 18... bxc6 {[%clk 0:02:37.9]} 19. Rab1 {[%clk 0:02:32.9]} 19... a5
{[%clk 0:02:36.8]} 20. b3 {[%clk 0:02:30.3]} 20... Rad8 {[%clk 0:02:34.4]} 21.
Bf3 {[%clk 0:02:21.2]} 21... Rxd1+ {[%clk 0:02:24.5]} 22. Rxd1 {[%clk
0:02:20.2]} 22... Re8 {[%clk 0:02:19.2]} 23. Be5 {[%clk 0:02:18]} 23... Nh7
{[%clk 0:02:15.8]} 24. h4 {[%clk 0:02:15.7]} 24... Nf8 {[%clk 0:02:14]} 25. Kg2
{[%clk 0:02:09.4]} 25... Ng6 {[%clk 0:02:09.5]} 26. Bc3 {[%clk 0:02:08.5]} 26...
Qc7 {[%clk 0:01:49.4]} 27. Be4 {[%clk 0:02:02.7]} 27... Ne5 {[%clk 0:01:39.8]}
28. Qb2 {[%clk 0:01:58.6]} 28... Ng4 {[%clk 0:01:38.6]} 29. Rd2 {[%clk
0:01:30.4]} 29... f5 {[%clk 0:01:18.7]} 30. Bf3 {[%clk 0:01:25.9]} 30... Nxf2
{[%clk 0:01:18]} 31. Rxf2 {[%clk 0:01:23.4]} 31... Bxf2 {[%clk 0:01:18.9]} 32.
Qxf2 {[%clk 0:01:21.2]} 32... e5 {[%clk 0:01:19.4]} 33. Bh5 {[%clk 0:01:19.3]}
33... Rf8 {[%clk 0:01:15.7]} 34. Qc5 {[%clk 0:01:16.1]} 34... e4 {[%clk
0:01:12.4]} 35. Qe5 {[%clk 0:00:58.9]} 35... Qxe5 {[%clk 0:01:11.5]} 36. Bxe5
{[%clk 0:00:59.8]} 36... Rd8 {[%clk 0:01:10.2]} 37. Bc3 {[%clk 0:00:58.5]} 37...
a4 {[%clk 0:01:08.7]} 38. bxa4 {[%clk 0:00:56.2]} 38... Rd3 {[%clk 0:01:08]} 39.
Bb4 {[%clk 0:00:53.8]} 39... c5 {[%clk 0:00:55]} 40. Bxc5 {[%clk 0:00:49.1]}
40... Rd2+ {[%clk 0:00:55.2]} 41. Kf1 {[%clk 0:00:47.6]} 41... Rxa2 {[%clk
0:00:56.1]} 42. Be8 {[%clk 0:00:47.5]} 42... g5 {[%clk 0:00:52.5]} 43. hxg5
{[%clk 0:00:46.7]} 43... hxg5 {[%clk 0:00:53.4]} 44. Be3 {[%clk 0:00:35.5]}
44... Ra3 {[%clk 0:00:49.7]} 45. Kf2 {[%clk 0:00:26.3]} 45... f4 {[%clk
0:00:49.6]} 46. gxf4 {[%clk 0:00:25.5]} 46... gxf4 {[%clk 0:00:50.5]} 47. Bc5
{[%clk 0:00:19.1]} 47... Ra2+ {[%clk 0:00:49.5]} 48. Ke1 {[%clk 0:00:18.9]}
48... e3 {[%clk 0:00:45.4]} 49. Bh5 {[%clk 0:00:15.3]} 49... Rxa4 {[%clk
0:00:42.4]} 50. Bd1 {[%clk 0:00:15.3]} 50... Ra2 {[%clk 0:00:38.1]} 51. Bd6
{[%clk 0:00:15.1]} 51... Kf7 {[%clk 0:00:15]} 52. Bxf4 {[%clk 0:00:14.2]} 52...
Ke6 {[%clk 0:00:11.2]} 53. Bxe3 {[%clk 0:00:14.1]} 53... Kd6 {[%clk 0:00:10.7]}
54. c5+ {[%clk 0:00:13.3]} 54... Kc6 {[%clk 0:00:10.7]} 55. Bf3+ {[%clk
0:00:13.5]} 55... Kc7 {[%clk 0:00:10.4]} 56. Bf4+ {[%clk 0:00:08.8]} 56... Kc8
{[%clk 0:00:09.5]} 57. c6 {[%clk 0:00:08.1]} 57... Rc2 {[%clk 0:00:08.2]} 58.
Bg3 {[%clk 0:00:07.1]} 58... Rc3 {[%clk 0:00:07.4]} 59. Kf2 {[%clk 0:00:07.1]}
59... Rc2+ {[%clk 0:00:07.2]} 60. Ke3 {[%clk 0:00:07.1]} 60... Rc3+ {[%clk
0:00:07.7]} 61. Kf4 {[%clk 0:00:07.2]} 61... Rc4+ {[%clk 0:00:08.2]} 62. Be4
{[%clk 0:00:06.5]} 62... Kc7 {[%clk 0:00:08.7]} 63. Kf5+ {[%clk 0:00:06.7]}
63... Kb6 {[%clk 0:00:08]} 64. Bf2+ {[%clk 0:00:05.7]} 64... Kc7 {[%clk
0:00:06.9]} 65. Bg3+ {[%clk 0:00:05.1]} 65... Kb6 {[%clk 0:00:07]} 66. Bf2+
{[%clk 0:00:05.1]} 66... Kc7 {[%clk 0:00:07.2]} 67. Bg3+ {[%clk 0:00:05.3]}
1/2-1/2

[Event "*** Titled Tuesday Blitz"]
[Site "Chess.com"]
[Date "2021.03.30"]
[Round "8"]
[White "bsnsun"]
[Black "biveklama"]
[Result "0-1"]
[WhiteElo "2465"]
[BlackElo "2363"]
[TimeControl "180+1"]
[EndTime "11:30:19 PDT"]
[Termination "biveklama won by checkmate"]

1. d4 {[%clk 0:03:00.9]} 1... d5 {[%clk 0:03:00.1]} 2. c4 {[%clk 0:03:00.4]}
2... c6 {[%clk 0:03:00.5]} 3. Nf3 {[%clk 0:03:01]} 3... Nf6 {[%clk 0:03:00.2]}
4. g3 {[%clk 0:03:01.5]} 4... g6 {[%clk 0:02:49.5]} 5. Bg2 {[%clk 0:03:00.9]}
5... Bg7 {[%clk 0:02:50]} 6. b3 {[%clk 0:03:01.4]} 6... O-O {[%clk 0:02:49.9]}
7. Bb2 {[%clk 0:03:01.6]} 7... Ne4 {[%clk 0:02:49.4]} 8. O-O {[%clk 0:02:59.2]}
8... Nd7 {[%clk 0:02:43.2]} 9. Nbd2 {[%clk 0:02:49.6]} 9... Ndf6 {[%clk
0:02:41.2]} 10. Rc1 {[%clk 0:02:48.2]} 10... Nxd2 {[%clk 0:02:35.3]} 11. Nxd2
{[%clk 0:02:47.8]} 11... a5 {[%clk 0:02:26.8]} 12. Re1 {[%clk 0:02:45.8]} 12...
a4 {[%clk 0:02:22.3]} 13. bxa4 {[%clk 0:02:40.6]} 13... Qa5 {[%clk 0:02:20.4]}
14. cxd5 {[%clk 0:02:40.5]} 14... cxd5 {[%clk 0:02:15.9]} 15. a3 {[%clk
0:02:34.4]} 15... Bd7 {[%clk 0:02:08.1]} 16. Nb3 {[%clk 0:02:34.1]} 16... Qxa4
{[%clk 0:02:01.2]} 17. Nc5 {[%clk 0:02:34.2]} 17... Qxd1 {[%clk 0:02:00.9]} 18.
Rexd1 {[%clk 0:02:34.8]} 18... Bc6 {[%clk 0:01:57.4]} 19. Rc3 {[%clk 0:02:31]}
19... b6 {[%clk 0:01:44.1]} 20. Nd3 {[%clk 0:02:27.6]} 20... Bb5 {[%clk
0:01:34]} 21. Rc7 {[%clk 0:02:17.9]} 21... Rfc8 {[%clk 0:01:17.2]} 22. Rdc1
{[%clk 0:01:55.5]} 22... Rxc7 {[%clk 0:01:09.5]} 23. Rxc7 {[%clk 0:01:56.4]}
23... e6 {[%clk 0:01:02.3]} 24. Rb7 {[%clk 0:01:55.8]} 24... Nd7 {[%clk
0:01:00.3]} 25. Nb4 {[%clk 0:01:49.9]} 25... Bf8 {[%clk 0:00:57.4]} 26. Bf3
{[%clk 0:01:38.8]} 26... Bxb4 {[%clk 0:00:48.2]} 27. axb4 {[%clk 0:01:39.7]}
27... Ra2 {[%clk 0:00:48.2]} 28. Bc3 {[%clk 0:01:40.2]} 28... Rc2 {[%clk
0:00:46.5]} 29. Rc7 {[%clk 0:01:37.7]} 29... Kg7 {[%clk 0:00:37.9]} 30. Kg2
{[%clk 0:01:35.6]} 30... Nb8 {[%clk 0:00:34.2]} 31. e4 {[%clk 0:01:32.7]} 31...
Nc6 {[%clk 0:00:32.3]} 32. exd5 {[%clk 0:01:23.1]} 32... exd5 {[%clk 0:00:33.2]}
33. Ba1 {[%clk 0:01:20.2]} 33... Rc1 {[%clk 0:00:24.6]} 34. Bxd5 {[%clk
0:01:12.4]} 34... Rxa1 {[%clk 0:00:15.6]} 35. Rxf7+ {[%clk 0:01:10.6]} 35... Kh6
{[%clk 0:00:14.1]} 36. g4 {[%clk 0:01:09.4]} 36... Nxd4 {[%clk 0:00:12.5]} 37.
h4 {[%clk 0:01:06.7]} 37... g5 {[%clk 0:00:10.6]} 38. h5 {[%clk 0:00:54]} 38...
Bf1+ {[%clk 0:00:10.1]} 39. Kh2 {[%clk 0:00:52.7]} 39... Bd3 {[%clk 0:00:09.3]}
40. Rf6+ {[%clk 0:00:51.4]} 40... Kg7 {[%clk 0:00:09.1]} 41. Rxb6 {[%clk
0:00:51.9]} 41... Be2 {[%clk 0:00:07.8]} 42. h6+ {[%clk 0:00:50.8]} 42... Kf8
{[%clk 0:00:07.4]} 43. Rb8+ {[%clk 0:00:35.9]} 43... Ke7 {[%clk 0:00:07.7]} 44.
Rb7+ {[%clk 0:00:36.5]} 44... Kd6 {[%clk 0:00:08]} 45. Bg2 {[%clk 0:00:34.6]}
45... Bd3 {[%clk 0:00:08.1]} 46. Rb6+ {[%clk 0:00:30.1]} 46... Ke5 {[%clk
0:00:08.5]} 47. Rb8 {[%clk 0:00:29.4]} 47... Rb1 {[%clk 0:00:08.6]} 48. Re8+
{[%clk 0:00:29.2]} 48... Kf4 {[%clk 0:00:08.9]} 49. Rd8 {[%clk 0:00:29.5]} 49...
Ke5 {[%clk 0:00:08.5]} 50. Rd5+ {[%clk 0:00:29.9]} 50... Ke6 {[%clk 0:00:04.8]}
51. Rxd4 {[%clk 0:00:30.4]} 51... Bg6 {[%clk 0:00:04.8]} 52. Rc4 {[%clk
0:00:27.7]} 52... Bd3 {[%clk 0:00:02.6]} 53. Rc6+ {[%clk 0:00:26.8]} 53... Ke5
{[%clk 0:00:03.1]} 54. Rb6 {[%clk 0:00:26.7]} 54... Kf4 {[%clk 0:00:03.1]} 55.
Rf6+ {[%clk 0:00:20.5]} 55... Kxg4 {[%clk 0:00:03.1]} 56. Bf3+ {[%clk
0:00:18.5]} 56... Kh4 {[%clk 0:00:02.6]} 57. Kg2 {[%clk 0:00:17.8]} 57... g4
{[%clk 0:00:02.5]} 58. Bd5 {[%clk 0:00:18]} 58... Bf1+ {[%clk 0:00:03.1]} 59.
Kh2 {[%clk 0:00:17.8]} 59... Bd3 {[%clk 0:00:03.7]} 60. Be6 {[%clk 0:00:17.7]}
60... Be4 {[%clk 0:00:02.1]} 61. f3 {[%clk 0:00:09.6]} 61... Bxf3 {[%clk
0:00:02.5]} 62. Rxf3 {[%clk 0:00:08.2]} 62... gxf3 {[%clk 0:00:03.4]} 63. Bd5
{[%clk 0:00:08.8]} 63... Rb2+ {[%clk 0:00:03.9]} 64. Kg1 {[%clk 0:00:08.7]}
64... Kg3 {[%clk 0:00:04.8]} 65. Be4 {[%clk 0:00:07.6]} 65... Re2 {[%clk
0:00:04.6]} 66. Bxf3 {[%clk 0:00:05.7]} 66... Re1# {[%clk 0:00:05]} 0-1

[Event "*** Titled Tuesday Blitz"]
[Site "Chess.com"]
[Date "2021.03.30"]
[Round "8"]
[White "Mikhal867"]
[Black "Witik"]
[Result "1-0"]
[WhiteElo "2446"]
[BlackElo "2673"]
[TimeControl "180+1"]
[EndTime "11:30:22 PDT"]
[Termination "Mikhal867 won on time"]

1. e4 {[%clk 0:02:58.9]} 1... c6 {[%clk 0:02:58.3]} 2. d3 {[%clk 0:02:53.6]}
2... d5 {[%clk 0:02:58.2]} 3. Nd2 {[%clk 0:02:52.8]} 3... Nf6 {[%clk 0:02:57.3]}
4. e5 {[%clk 0:02:47.9]} 4... Nfd7 {[%clk 0:02:54.2]} 5. Ngf3 {[%clk 0:02:45.4]}
5... e6 {[%clk 0:02:53.3]} 6. g3 {[%clk 0:02:43.9]} 6... c5 {[%clk 0:02:53.1]}
7. Bg2 {[%clk 0:02:34.2]} 7... Nc6 {[%clk 0:02:53.3]} 8. Qe2 {[%clk 0:02:22.9]}
8... g5 {[%clk 0:02:37.3]} 9. O-O {[%clk 0:02:10.5]} 9... Bg7 {[%clk 0:02:27.9]}
10. Nb3 {[%clk 0:01:47.8]} 10... h6 {[%clk 0:02:15.7]} 11. d4 {[%clk 0:01:39.9]}
11... c4 {[%clk 0:01:52.3]} 12. Nbd2 {[%clk 0:01:24.8]} 12... g4 {[%clk
0:01:51.1]} 13. Nh4 {[%clk 0:01:24.8]} 13... Nxd4 {[%clk 0:01:50.8]} 14. Qxg4
{[%clk 0:01:24.4]} 14... Bxe5 {[%clk 0:01:51]} 15. Ndf3 {[%clk 0:01:16.8]} 15...
Ne2+ {[%clk 0:01:37.9]} 16. Kh1 {[%clk 0:01:16.1]} 16... Nxc1 {[%clk 0:01:38]}
17. Nxe5 {[%clk 0:01:08.9]} 17... Nxe5 {[%clk 0:01:34.5]} 18. Qg7 {[%clk
0:01:08.3]} 18... Rf8 {[%clk 0:00:49.7]} 19. Qxe5 {[%clk 0:01:06.8]} 19... Qg5
{[%clk 0:00:49.8]} 20. Qe1 {[%clk 0:00:52.7]} 20... Nd3 {[%clk 0:00:36.7]} 21.
cxd3 {[%clk 0:00:51.2]} 21... cxd3 {[%clk 0:00:37.6]} 22. f4 {[%clk 0:00:50.2]}
22... Qf6 {[%clk 0:00:34.9]} 23. Qe5 {[%clk 0:00:48.6]} 23... Qxe5 {[%clk
0:00:33.1]} 24. fxe5 {[%clk 0:00:48.1]} 24... Bd7 {[%clk 0:00:33.7]} 25. Rfd1
{[%clk 0:00:45]} 25... Rc8 {[%clk 0:00:33.2]} 26. Rxd3 {[%clk 0:00:42.7]} 26...
Rc2 {[%clk 0:00:33.3]} 27. Rb3 {[%clk 0:00:39.7]} 27... b6 {[%clk 0:00:32.2]}
28. Nf3 {[%clk 0:00:37.6]} 28... Ke7 {[%clk 0:00:31.7]} 29. Bf1 {[%clk
0:00:32.5]} 29... f6 {[%clk 0:00:20.3]} 30. Bd3 {[%clk 0:00:31]} 30... Rf2
{[%clk 0:00:19]} 31. exf6+ {[%clk 0:00:30.1]} 31... Rxf6 {[%clk 0:00:19.1]} 32.
Ne5 {[%clk 0:00:29.6]} 32... Be8 {[%clk 0:00:17.3]} 33. Ng4 {[%clk 0:00:25.6]}
33... e5 {[%clk 0:00:13.2]} 34. Nxf6 {[%clk 0:00:22.9]} 34... Rxf6 {[%clk
0:00:11.3]} 35. Bb5 {[%clk 0:00:22.4]} 35... Bg6 {[%clk 0:00:10.9]} 36. Re1
{[%clk 0:00:21.6]} 36... Kd6 {[%clk 0:00:11.1]} 37. Bd3 {[%clk 0:00:17]} 37...
e4 {[%clk 0:00:11.4]} 38. Bf1 {[%clk 0:00:17.1]} 38... Ke5 {[%clk 0:00:10]} 39.
Bg2 {[%clk 0:00:16]} 39... Rc6 {[%clk 0:00:10.2]} 40. Rb5 {[%clk 0:00:15.9]}
40... Rc5 {[%clk 0:00:10.4]} 41. Rxc5 {[%clk 0:00:15.4]} 41... bxc5 {[%clk
0:00:11]} 42. Kg1 {[%clk 0:00:15.9]} 42... d4 {[%clk 0:00:11.4]} 43. Kf2 {[%clk
0:00:15.9]} 43... e3+ {[%clk 0:00:11.9]} 44. Ke2 {[%clk 0:00:15.9]} 44... c4
{[%clk 0:00:10.5]} 45. Bf3 {[%clk 0:00:15.3]} 45... Bd3+ {[%clk 0:00:10.7]} 46.
Kd1 {[%clk 0:00:15.2]} 46... Be4 {[%clk 0:00:11]} 47. Be2 {[%clk 0:00:15.2]}
47... d3 {[%clk 0:00:11.1]} 48. Bh5 {[%clk 0:00:15.2]} 48... Kd4 {[%clk
0:00:11.5]} 49. Rg1 {[%clk 0:00:14.6]} 49... a5 {[%clk 0:00:09.1]} 50. h4 {[%clk
0:00:14.2]} 50... a4 {[%clk 0:00:09.4]} 51. Bg4 {[%clk 0:00:14.4]} 51... a3
{[%clk 0:00:09.7]} 52. bxa3 {[%clk 0:00:14.8]} 52... c3 {[%clk 0:00:10.1]} 53.
Be2 {[%clk 0:00:08.9]} 53... c2+ {[%clk 0:00:09.9]} 54. Kc1 {[%clk 0:00:09.2]}
54... d2+ {[%clk 0:00:07.6]} 55. Kb2 {[%clk 0:00:09.2]} 55... Bd3 {[%clk
0:00:08.2]} 56. Bg4 {[%clk 0:00:08]} 56... Be4 {[%clk 0:00:04.9]} 57. a4 {[%clk
0:00:07.6]} 57... Bd3 {[%clk 0:00:05.2]} 58. a5 {[%clk 0:00:07.6]} 58... c1=Q+
{[%clk 0:00:04.5]} 59. Rxc1 {[%clk 0:00:07]} 59... dxc1=Q+ {[%clk 0:00:05.1]}
60. Kxc1 {[%clk 0:00:07.3]} 60... Kc3 {[%clk 0:00:06]} 61. Kd1 {[%clk
0:00:04.6]} 61... Kb4 {[%clk 0:00:03.8]} 62. Be2 {[%clk 0:00:04.2]} 62... Bb1
{[%clk 0:00:02.6]} 63. a6 {[%clk 0:00:04.1]} 63... Bxa2 {[%clk 0:00:03]} 64. Kc2
{[%clk 0:00:04.2]} 64... Bd5 {[%clk 0:00:02.2]} 65. Kd3 {[%clk 0:00:03.9]} 1-0